[Event "NY Presidents Day IM-B 2024"]
[Site "New York"]
[Date "2024.02.20"]
[Round "9.2"]
[White "Tanenbaum, Zachary"]
[Black "Sun, Ryan"]
[Result "1-0"]
[ECO "C50"]
[WhiteElo "2272"]
[BlackElo "2217"]
[Annotator "TA"]
[PlyCount "107"]
[EventDate "2024.02.14"]
[EventType "schev"]
[EventCountry "USA"]
[SourceTitle "playchess.com"]
[Source "ChessBase"]
[SourceQuality "1"]
[TimeControl "5400+30"]

{[%evp 12,107,16,7,13,10,14,6,25,22,23,18,25,0,18,6,15,0,12,0,27,31,34,29,29,29,36,27,33,8,39,22,48,40,93,84,121,124,126,122,128,120,145,104,118,91,93,94,88,89,88,88,95,95,102,102,100,34,35,35,25,11,76,0,0,0,0,0,0,0,0,0,0,0,0,0,0,0,5,0,2,8,28,8,91,0,0,0,0,0,108,108,129,143,650,642,29995,29996]} 1. e4 {[%emt 0:16:59]} e5 {[%emt 0:00:59]} 2. Nf3 {[%emt 0:00:03]} Nc6 {[%emt 0:00:07]} 3. Bc4 {[%emt 0:00:01]} Bc5 {[%emt 0:00:10]} 4. d3 {[%emt 0:00:01]} Nf6 {[%emt 0:00:08]} 5. Nc3 {[%emt 0:00:01]} h6 {[%emt 0:00:17]} 6. O-O {[%emt 0:00:06]} d6 {[%emt 0:00:05]} 7. Na4 {[%emt 0:00:20]} Bb6 {[%emt 0:00:50]} 8. a3 {[%emt 0:01:16]} O-O {[%emt 0:01:08]} 9. h3 {[%emt 0:00:44]} Be6 {[%emt 0:02:43] Die Stellung ist ausgeglichen.} 10. Bxe6 {[%emt 0:01:20]} fxe6 {[%emt 0:00:07]} 11. c3 {[%emt 0:03:24]} Qe8 {[%emt 0:00:53]} 12. Nh2 {[%emt 0:03:45]} Nh5 {[%emt 0:04:44]} 13. Nxb6 {[%emt 0:03:33]} (13. b4 {scheint wilder zu sein.} Qg6 14. Nf3 Rf6 15. Nxb6 axb6 16. a4) 13... axb6 {[%emt 0:00:09]} 14. g3 {[%emt 0:00:53]} (14. Re1 {hält die Spannung aufrecht.} Qg6 15. Nf3 Ne7 16. Kh2) 14... Rd8 {[%emt 0:02:41][%cal Ba8d8,Bd8d7,Bd7f7,Bf7f6][%mdl 32]} 15. Ng4 {[%emt 0:07:44]} Kh8 {[%emt 0:03:09]} 16. a4 {[%emt 0:04:41]} Qg6 {[%emt 0:02:19]} 17. Kh2 {[%emt 0:05:28]} (17. Kg2 {wäre vielleicht verwirrender.} Rf7 18. b4 Ra8 19. Bd2) 17... Rd7 {[%emt 0:01:53]} 18. Qe2 {[%emt 0:01:23]} Rdf7 {[%emt 0:01:49]} 19. Bd2 {[%emt 0:01:49]} Nf6 {[%emt 0:11:39]} 20. Kg2 {[%emt 0:16:59]} Nh7 {[%emt 0:02:50]} 21. Nh2 {[%emt 0:05:21]} Rf6 {[%emt 0:03:15]} 22. b4 {[%emt 0:01:55]} Ng5 {[%emt 0:05:14]} (22... Ra8 $14) 23. Qg4 $16 {[%emt 0:02:50]} Qf7 {[%emt 0:01:51][%cal Rf6f2]} 24. Bxg5 {[%emt 0:01:12]} hxg5 {[%emt 0:03:29]} (24... Rxf2+ 25. Kh1 hxg5 26. Rxf2 Qxf2 27. Rf1 (27. Qxe6 Qe2 $15) (27. Qxg5 Kg8 $11) 27... Qxf1+ 28. Nxf1 Rxf1+ 29. Kh2 (29. Kg2 Ra1 $18) 29... Rf2+ 30. Kg1 $18) 25. Ra2 {[%emt 0:04:47]} (25. Qxg5 Rxf2+ 26. Kg1 Rf6 $14) 25... Qg6 {[%emt 0:01:27]} 26. Qe2 {[%emt 0:00:33]} R6f7 {[%emt 0:03:03]} 27. Ng4 {[%emt 0:01:42]} Kg8 {[%emt 0:02:05]} 28. b5 {[%emt 0:02:13]} Nb8 {[%emt 0:01:01][%cal Bc6b8,Bb8d7,Bd7c5][%mdl 32]} 29. a5 {[%emt 0:01:05]} bxa5 {[%emt 0:00:25]} 30. Rxa5 {[%emt 0:00:13]} Nd7 {[%emt 0:00:06]} 31. Ra7 {[%emt 0:02:57]} Nc5 {[%emt 0:00:39]} 32. f3 {[%emt 0:01:46]} Rb8 {[%emt 0:06:25]} 33. d4 {[%emt 0:00:44]} Nd7 {[%emt 0:01:06]} 34. dxe5 {[%emt 0:00:43]} (34. Qc4 $16 Nb6 35. Qb3) 34... Nxe5 $14 {[%emt 0:00:31]} 35. Nxe5 {[%emt 0:00:44]} dxe5 {[%emt 0:00:19]} 36. Rd1 {[%emt 0:01:28]} Qh5 {[%emt 0:00:34]} (36... Qf6 $11) 37. g4 {[%emt 0:04:30]} ({Besser ist} 37. c4 $16) 37... Qh6 $11 {[%emt 0:01:58]} 38. Rd3 {[%emt 0:00:11]} Kh7 {[%emt 0:02:08]} 39. Qa2 {[%emt 0:01:10]} Rff8 {[%emt 0:01:10]} 40. Qc4 {[%emt 0:02:11]} Rf7 {[%emt 0:03:42]} 41. Qc5 {[%emt 0:00:37]} Qf6 {[%emt 0:00:25]} 42. c4 {[%emt 0:01:04]} Rd8 {[%emt 0:02:25]} 43. Qe3 {[%emt 0:00:29]} Rb8 {[%emt 0:04:37]} 44. c5 {[%emt 0:00:11]} Qh6 {[%emt 0:00:49]} 45. Qd2 {[%emt 0:00:19]} Rff8 {[%emt 0:04:18]} 46. Raa3 {[%emt 0:01:17]} (46. Rd7 Rxf3 47. Kxf3 Qxh3+ 48. Ke2 Rf8) 46... Kg6 {[%emt 0:01:02]} 47. Ra1 {[%emt 0:00:32]} Kf6 {[%emt 0:01:30] [#]} (47... Rh8 $11 48. Rh1 Qh4) 48. h4 {[%emt 0:00:32]} gxh4 {[%emt 0:00:51]} 49. Qxh6+ {[%emt 0:00:01]} gxh6 {[%emt 0:00:09] KRR-KRR} 50. Rd7 {[%emt 0:00:33]} h5 {[%emt 0:07:24]} 51. gxh5 $16 {[%emt 0:00:55][%cal Og2h3] Droht Kh3! und aus. Weiß steht deutlich aktiver.} ({Bitte nicht} 51. Rxc7 $6 hxg4 52. fxg4 Kg5 $11) 51... Kg5 {[%emt 0:00:27]} 52. Rxc7 {[%emt 0:00:39] Und Ra7 würde nun gewinnen.} Kf4 $2 {[%emt 0:01:05][%mdl 8192]} (52... Rfc8 $16 53. Re7 Rxc5) 53. Rg7 $18 {[%emt 0:00:22] [#] Droht Matt per Kf2.} Rbc8 {[%emt 0:02:44]} 54. Kf2 {[%emt 0:00:10] Gewichteter Fehlerwert: Weiß=0.11 (sehr präzise) /Schwarz=0.41.  Verlustzug:     	---       	Schwarz=1     Fehler:       	Weiß=3     	Schwarz=4     Ungenau:       	---       	Schwarz=5     OK:         	Weiß=15    	Schwarz=9     Bester:       	Weiß=2     	Schwarz=2} 1-0

[Event "NY Presidents Day IM-B 2024"]
[Site "New York"]
[Date "2024.02.20"]
[Round "9.3"]
[White "Pang, Qi"]
[Black "Lee, Megan"]
[Result "1/2-1/2"]
[ECO "D02"]
[WhiteElo "2148"]
[BlackElo "2267"]
[Annotator "TA"]
[PlyCount "131"]
[EventDate "2024.02.14"]
[EventType "schev"]
[EventCountry "USA"]
[SourceTitle "playchess.com"]
[Source "ChessBase"]
[SourceQuality "1"]
[TimeControl "5400+30"]

{[%evp 17,131,4,12,11,11,0,0,-12,0,-13,-4,-14,0,0,9,0,14,0,14,-25,-17,-24,0,-3,0,0,0,0,0,0,0,-4,0,0,0,0,0,0,0,0,0,-7,0,0,0,0,0,0,0,-6,0,0,0,-7,-6,-7,0,-25,-18,-49,0,0,0,0,0,0,0,0,0,-7,0,0,0,0,0,0,0,0,0,0,0,0,0,0,0,0,0,0,0,0,0,0,0,0,0,0,0,0,0,0,0,0,0,0,0,0,0,0,0,0,0,0,0,0,0,0]} 1. Nf3 {[%emt 0:00:54]} d5 {[%emt 0:00:04]} 2. d4 {[%emt 0:00:12]} Nf6 {[%emt 0:00:27]} 3. g3 {[%emt 0:00:06]} c6 {[%emt 0:03:11]} 4. Bg2 {[%emt 0:00:05]} Bf5 {[%emt 0:04:51]} 5. O-O {[%emt 0:00:11]} e6 {[%emt 0:01:07]} 6. Nbd2 {[%emt 0:00:07]} Be7 {[%emt 0:01:03]} 7. c4 {[%emt 0:00:30]} h6 {[%emt 0:00:26]} 8. b3 {[%emt 0:00:11]} Ne4 {[%emt 0:06:07]} 9. Bb2 {[%emt 0:00:23]} Nd7 {[%emt 0:02:22]} 10. e3 {[%emt 0:00:29]} O-O {[%emt 0:00:53]} 11. Qe2 {[%emt 0:00:18]} a5 {[%emt 0:01:47]} 12. Rfd1 {[%emt 0:00:07]} a4 {[%emt 0:00:12] [#] Strongly threatening ...a3.} 13. Nxe4 {[%emt 0:00:05]} Bxe4 {[%emt 0:00:34]} 14. Bf1 {[%emt 0:00:16]} axb3 {[%emt 0:02:20]} 15. axb3 {[%emt 0:00:08]} Qb6 {[%emt 0:01:04]} 16. Nd2 {[%emt 0:02:22]} Bg6 {[%emt 0:04:28]} 17. Bc3 {[%emt 0:02:00]} Bf6 {[%emt 0:03:39]} 18. f4 {[%emt 0:02:16]} Qc7 {[%emt 0:03:15]} 19. c5 {[%emt 1:29:20]} Rfb8 {[%emt 0:05:29] next ...Nxc5 is good for Black.} 20. b4 {[%emt 0:00:00]} b6 {[%emt 0:10:22] ...bxc5 is the strong threat.} 21. Nb3 {[%emt 0:00:00]} bxc5 {[%emt 0:02:05]} 22. Nxc5 {[%emt 0:00:00]} Nxc5 {[%emt 0:01:00]} 23. bxc5 {[%emt 0:00:00]} Qb7 {[%emt 0:01:16]} 24. Qd2 {[%emt 0:00:00]} Qb3 {[%emt 0:03:32]} 25. Rdc1 {[%emt 0:00:00]} Bd8 {[%emt 0:04:17]} 26. Be2 {[%emt 0:00:00]} Kf8 {[%emt 0:04:04]} 27. Bd1 {[%emt 0:00:00]} Qb5 {[%emt 0:02:17]} 28. Be2 {[%emt 0:00:00]} Qb7 {[%emt 0:01:34]} 29. Kf2 {[%emt 0:00:00]} Ke8 {[%emt 0:01:49]} 30. Rxa8 {[%emt 0:00:00]} Rxa8 {[%emt 0:00:12]} 31. Ra1 {[%emt 0:00:00]} Rxa1 {[%emt 0:00:26]} 32. Bxa1 {[%emt 0:00:00]} Qb1 {[%emt 0:00:14]} 33. Qd1 {[%emt 0:00:00]} Qa2 {[%emt 0:01:26]} (33... Qxd1 {simplifies} 34. Bxd1 Ba5 35. Be2 Ke7) 34. Bc3 {[%emt 0:00:00]} Bh5 {[%emt 0:04:45]} 35. Bd2 {[%emt 0:00:00]} Bxe2 {[%emt 0:00:35]} 36. Qxe2 $11 {[%emt 0:00:00][%mdl 4096] Endgame. KQB-KQB} Kd7 {[%emt 0:00:54]} 37. Kf3 {[%emt 0:00:00]} Qb1 {[%emt 0:03:30]} 38. Be1 {[%emt 0:00:00]} Qa1 {[%emt 0:04:09]} (38... g5 $15 {should be considered.} 39. fxg5 hxg5) 39. Kf2 {[%emt 0:00:00] The position is equal.} Kc8 {[%emt 0:00:16]} 40. Qh5 {[%emt 0:00:00]} Qa2+ {[%emt 0:00:05]} 41. Kf1 {[%emt 0:11:00]} Qc4+ {[%emt 0:00:35]} 42. Kf2 {[%emt 0:00:00]} Qc2+ {[%emt 0:00:34]} 43. Kf1 {[%emt 0:00:00]} Qc4+ {[%emt 0:02:15]} 44. Kf2 {[%emt 0:00:00]} Qa2+ {[%emt 0:00:04]} 45. Kf1 {[%emt 0:00:00]} Qa7 {[%emt 0:00:04]} 46. Bd2 {[%emt 0:00:00]} Qa6+ {[%emt 0:01:48]} 47. Kf2 {[%emt 0:00:00]} Qa2 {[%emt 0:00:11]} 48. Ke1 {[%emt 0:00:00]} Qa7 {[%emt 0:01:44]} 49. Kf2 {[%emt 0:00:00]} Qe7 {[%emt 0:00:55]} 50. Be1 {[%emt 0:00:00]} Kb7 {[%emt 0:01:12]} 51. Kf1 {[%emt 0:00:00]} Ka8 {[%emt 0:01:05]} 52. g4 {[%emt 0:00:00]} Qf6 {[%emt 0:04:59]} 53. Bg3 {[%emt 0:00:00]} Ka7 {[%emt 0:01:38]} 54. f5 {[%emt 0:00:00]} g6 {[%emt 0:03:20]} 55. Qxh6 {[%emt 0:00:00]} exf5 {[%emt 0:00:07]} 56. Be5 {[%emt 0:00:00]} Qg5 {[%emt 0:01:21]} 57. Qf8 {[%emt 0:00:18]} fxg4 {[%emt 0:01:13]} 58. Qxf7+ {[%emt 0:02:36]} Ka6 {[%emt 0:00:05]} 59. Bf4 {[%emt 0:00:48]} Qf5 {[%emt 0:02:10]} 60. Qxf5 {[%emt 0:05:48]} gxf5 {KB-KB} 61. Kg2 {[%emt 0:00:00]} Kb5 {[%emt 0:00:51]} 62. h3 {[%emt 0:00:00]} gxh3+ {[%emt 0:00:41]} 63. Kxh3 {[%emt 0:00:00]} Kc4 {[%emt 0:00:18] [#] Threatens to win with ...Kd3.} 64. Kg3 {[%emt 0:00:00]} Kd3 {[%emt 0:00:18] ...Ke2 would now be deadly.} 65. Kf3 {[%emt 0:00:00]} Ba5 {[%emt 0:00:20]} 66. Bg5 {[%emt 0:00:00] An uneventful encounter.   Weighted Error Value: White=0.04 (flawless) /Black=0.04 (flawless) .  Mistake:       	---       	Black=1      Inaccurate:     	White=2     	---        OK:         	White=20    	Black=14     Best:        	White=1     	Black=4} 1/2-1/2

[Event "NY Presidents Day IM-B 2024"]
[Site "New York"]
[Date "2024.02.20"]
[Round "9.4"]
[White "Jimenez Fraga, Pedro Alejandro"]
[Black "Poliannikov, Danila"]
[Result "0-1"]
[ECO "A04"]
[WhiteElo "2447"]
[BlackElo "2282"]
[Annotator "TA"]
[PlyCount "106"]
[EventDate "2024.02.14"]
[EventType "schev"]
[EventCountry "USA"]
[SourceTitle "playchess.com"]
[Source "ChessBase"]
[SourceQuality "1"]
[TimeControl "5400+30"]

{[%evp 16,106,-11,-4,59,-17,62,-60,-58,-56,-53,-59,-56,-67,-59,-58,-60,-57,-52,-61,-47,-54,-43,-57,-48,-50,-28,-50,-25,-54,-53,-55,-51,-56,-16,-47,-51,-62,-66,-61,-55,-68,-41,-68,-58,-77,-71,-84,-70,-93,-72,-97,-83,-176,-156,-163,-166,-164,-158,-215,-147,-232,-237,-566,-470,-602,-562,-521,-344,-350,-372,-393,-359,-380,-389,-402,-408,-390,-391,-695,-695,-685,-580,-1184,-1152,-3030,-2961,-29957,-29962,-2193,-1867,-29984,-1693]} 1. Nf3 {[%emt 0:02:13]} Nf6 {[%emt 0:00:05]} 2. g3 {[%emt 0:00:17]} c5 {[%emt 0:00:06]} 3. Bg2 {[%emt 0:00:05]} Nc6 {[%emt 0:00:04]} 4. O-O {[%emt 0:01:05]} e5 {[%emt 0:00:02]} 5. e4 {[%emt 0:00:22]} Be7 {[%emt 0:00:11]} 6. Re1 {[%emt 0:01:43] A04: Unusual lines after 1 Nf3 and King's Indian Attack.} O-O {[%emt 0:00:41]} 7. c3 {[%emt 0:00:16]} d6 {[%emt 0:02:57]} 8. h3 {[%emt 0:00:52]} h6 {[%emt 0:06:51]} 9. d4 {[%emt 0:01:12]} Qc7 {[%emt 0:00:28]} (9... exd4 $11 10. cxd4 d5) 10. Na3 {[%emt 0:06:17]} (10. d5 $14) 10... a6 {[%emt 0:01:45]} ({Black should play} 10... exd4 $1 $11 11. cxd4 d5) 11. Nc4 $146 {[%emt 0:00:52]} (11. d5 $14) ({Predecessor:} 11. Nc2 Re8 12. Ne3 exd4 13. cxd4 Bf8 14. d5 Nd8 15. Nd2 g6 16. a4 Bg7 17. a5 {1-0 Radlovacki,J (2292)-Avdic,M (2094) Brcko Velemajstor CC 1st 2023 (3)}) 11... cxd4 $15 {[%emt 0:01:59]} 12. cxd4 {[%emt 0:00:09]} Nxd4 {[%emt 0:00:26]} 13. Ne3 {[%emt 0:00:14]} Nxf3+ {[%emt 0:00:44]} (13... Nxe4 $2 14. Nxd4 Nf6 (14... exd4 $2 15. Nd5 $18) 15. Ndf5 $18) 14. Qxf3 {[%emt 0:00:04]} Be6 {[%emt 0:01:17]} 15. Bd2 {[%emt 0:00:06]} Rac8 {[%emt 0:02:06]} 16. Nf5 {[%emt 0:00:57]} Bxf5 {[%emt 0:03:49]} 17. Qxf5 {[%emt 0:00:06]} Qb6 {[%emt 0:01:53]} 18. Bc3 {[%emt 0:00:20]} Rfd8 {[%emt 0:03:43]} 19. Rad1 {[%emt 0:00:10]} Nd7 {[%emt 0:02:15]} 20. Bf1 {[%emt 0:00:20]} Bf6 {[%emt 0:01:46]} 21. Rd5 {[%emt 0:00:58]} Rc5 {[%emt 0:07:25]} 22. Rd3 {[%emt 0:01:30]} Nf8 {[%emt 0:00:56]} 23. h4 {[%emt 0:01:24]} Ne6 {[%emt 0:01:14]} 24. Qf3 {[%emt 0:05:45]} Nc7 {[%emt 0:06:14]} 25. Red1 {[%emt 0:15:11]} Nb5 {[%emt 0:02:32]} 26. Bh3 {[%emt 0:00:01]} Nxc3 {[%emt 0:02:53]} 27. bxc3 {[%emt 0:00:02]} Be7 {[%emt 0:01:25]} 28. R1d2 {[%emt 0:14:16]} Qa5 {[%emt 0:01:07]} 29. Kh2 {[%emt 0:01:31]} b5 {[%emt 0:01:19]} 30. Rc2 {[%emt 0:00:40]} Rb8 {[%emt 0:01:38]} 31. Qf5 {[%emt 0:00:17]} Rb7 {[%emt 0:46:09]} 32. Qh5 {[%emt 0:02:33]} Bf8 {[%emt 0:00:00]} 33. Rf3 {[%emt 0:01:23]} Qc7 {[%emt 0:00:00]} 34. Re2 {[%emt 0:02:16]} (34. Re3 $17) 34... Rxc3 {[%emt 0:00:00]} 35. Rxc3 {[%emt 0:02:25]} Qxc3 {[%emt 0:00:00]} 36. Kg2 {[%emt 0:00:01]} b4 {[%emt 0:00:00]} 37. Re3 {[%emt 0:00:37]} (37. Qf3 $17) 37... Qc4 {[%emt 0:00:00]} 38. Re2 {[%emt 0:01:12]} (38. Qe2 $17 {was called for.} Qxe2 39. Rxe2) 38... a5 {[%emt 0:00:00]} 39. Qf3 $2 {[%emt 0:00:38]} (39. Rd2) 39... a4 {[%emt 0:00:00]} 40. Qe3 {[%emt 0:01:30]} b3 {[%emt 0:00:00]} 41. axb3 {[%emt 0:00:07]} axb3 {[%emt 0:00:00]} 42. Rb2 {[%emt 0:00:37]} d5 {[%emt 0:00:00]} 43. exd5 {[%emt 0:00:19]} Qxd5+ {[%emt 0:00:00]} 44. Kh2 {[%emt 0:00:12]} Bc5 {[%emt 0:00:00]} 45. Qc3 {[%emt 0:00:57]} Bd4 {[%emt 0:00:00]} 46. Qc8+ {[%emt 0:00:07]} Kh7 {[%emt 0:00:00]} 47. Bg2 $2 {[%emt 0:00:27]} (47. Qg4 Bxb2 48. Bg2) 47... e4 $19 {[%emt 0:00:00]} 48. Rd2 {[%emt 0:00:51]} Rb6 {[%emt 0:00:00]} 49. Qe8 {[%emt 0:27:01]} f5 {[%emt 0:00:00]} 50. Bh3 {[%emt 0:01:56]} b2 {[%emt 0:00:00]} 51. h5 {[%emt 0:00:08]} b1=Q {[%emt 0:00:00]} (51... b1=B $2 52. Rxd4 Qg8 53. Bxf5+ Kh8 54. Rd8 $18) 52. Rxd4 {[%emt 0:00:21]} Qbb5 {[%emt 0:00:00]} (52... Qxd4 53. Bxf5+ g6 54. hxg6+ Kg7 55. Qf7+ Kh8 56. Qh7#) 53. Qf8 {[%emt 0:10:43]} Qbc5 {[%emt 0:00:00]} (53... Qdc5 $142 54. Qxc5 Qxc5 55. Rd2 f4 56. gxf4 Rf6 (56... Qxh5 {gets mated.} 57. f3 Qxf3 58. Bf5+ Kg8 59. Rd8+ Kf7 60. Rd2 Qxf4+ 61. Kh3 Rb3+ 62. Rd3 Rxd3+ 63. Kg2 Rg3+ 64. Kh2 Qh4+ 65. Bh3 Qxh3#) 57. f5 Qc7+ 58. Kg2 Qf4 59. Rd4 Ra6 60. Rd1 Qf3+ 61. Kg1 Ra2 (61... Qxd1+ {is a self mate.} 62. Bf1 Ra2 63. f6 Qf3 64. Be2 Rxe2 65. Kh2 Rxf2+ 66. Kg1 Qg2#) 62. Rf1 Qxh3 63. Re1 e3 (63... Qxf5 64. Re2 Rxe2 65. Kh2 Qxf2+ 66. Kh3 Qf3+ 67. Kh4 Rh2#) 64. Rf1 exf2+ (64... Qxh5 {leads to mate.} 65. Kg2 Qg4+ 66. Kh2 exf2 67. Rxf2 Rxf2+ 68. Kh1 Qg2#) 65. Rxf2 Ra1+ 66. Rf1 Rxf1#) 0-1

[Event "NY Presidents Day IM-B 2024"]
[Site "New York"]
[Date "2024.02.20"]
[Round "9.5"]
[White "Bortnyk, Mykola"]
[Black "Wongso, Steve"]
[Result "1/2-1/2"]
[ECO "E63"]
[WhiteElo "2421"]
[BlackElo "2229"]
[Annotator "TA"]
[PlyCount "95"]
[EventDate "2024.02.14"]
[EventType "schev"]
[EventCountry "USA"]
[SourceTitle "playchess.com"]
[Source "ChessBase"]
[SourceQuality "1"]
[TimeControl "5400+30"]

{[%evp 17,95,0,26,20,33,19,22,10,21,0,11,0,0,0,0,0,0,0,0,0,0,0,0,0,8,13,6,6,8,4,8,0,8,8,35,33,31,46,45,31,39,0,0,0,0,0,127,129,145,129,477,0,0,0,0,0,0,0,0,0,0,0,0,0,0,0,0,0,0,0,0,0,0,0,0,0,0,0,0,-4133]} 1. d4 {[%emt 0:00:02]} Nf6 {[%emt 0:00:04]} 2. Nf3 {[%emt 0:00:07]} g6 {[%emt 0:00:25]} 3. c4 {[%emt 0:00:06]} Bg7 {[%emt 0:00:04]} 4. g3 {[%emt 0:00:06]} O-O {[%emt 0:00:04]} 5. Bg2 {[%emt 0:00:03]} d6 {[%emt 0:00:05]} 6. O-O {[%emt 0:00:09]} Nc6 {[%emt 0:00:03]} 7. Nc3 {[%emt 0:00:07]} a6 {[%emt 0:00:03]} 8. b3 {[%emt 0:02:01]} Rb8 {[%emt 0:00:14]} 9. a4 {[%emt 0:01:14]} Na5 {[%emt 0:06:05]} 10. Qc2 {[%emt 0:04:34]} c5 {[%emt 0:01:41]} 11. dxc5 {[%emt 0:00:54]} Bf5 $1 {[%emt 0:00:42]} 12. Qa2 {[%emt 0:10:27] Threatens to win with cxd6.} ({Don't play} 12. e4 Nxe4 13. Nxe4 Bxa1 14. cxd6 Bg7 $17 (14... exd6 15. Bg5 $11)) 12... dxc5 {[%emt 0:10:30]} 13. Nh4 {[%emt 0:00:07]} Ng4 {[%emt 0:06:17]} 14. Nxf5 {[%emt 0:03:42]} Bxc3 {[%emt 0:03:24]} 15. Nh6+ {[%emt 0:00:07]} Nxh6 {[%emt 0:00:24]} 16. Bxh6 {[%emt 0:00:03] A strong pair of Bishops.} Bxa1 {[%emt 0:00:21]} 17. Qxa1 {[%emt 0:00:02]} (17. Bxf8 {simplifies} Qxf8 18. Qxa1 Qd8 19. Qc3) 17... Qd4 {[%emt 0:01:58]} 18. Qxd4 {[%emt 0:00:17]} cxd4 {[%emt 0:00:05]} 19. Bxf8 {[%emt 0:00:03]} Kxf8 $11 {[%emt 0:00:04][%mdl 4096] Endgame. KRB-KRN} 20. Rb1 {[%emt 0:00:04]} b5 {[%emt 0:02:36]} 21. axb5 {[%emt 0:13:40]} axb5 {[%emt 0:00:09]} 22. cxb5 {[%emt 0:00:38]} Rxb5 {[%emt 0:01:34]} 23. b4 {[%emt 0:01:31]} f5 {[%emt 0:09:36]} 24. h4 {[%emt 0:06:01]} h5 {[%emt 0:04:37]} 25. e4 {[%emt 0:00:49]} e6 {[%emt 0:17:51]} 26. exf5 {[%emt 0:04:19]} exf5 {[%emt 0:00:15]} 27. Bf1 {[%emt 0:00:39]} Rb6 {[%emt 0:02:18]} 28. f4 {[%emt 0:00:10]} Nb7 $1 {[%emt 0:01:54]} 29. b5 {[%emt 0:01:21]} Ke7 {[%emt 0:02:59]} 30. Rb4 {[%emt 0:02:34]} Rd6 {[%emt 0:00:59]} 31. Rc4 {[%emt 0:04:07]} Kd7 {[%emt 0:02:17] [#] Inhibits Rc7+.} (31... Rd7 $1 $11 {remains equal.}) 32. Kf2 $1 $16 {[%emt 0:00:47]} d3 {[%emt 0:16:22] [#] aiming for ...d2.} 33. Ke1 {[%emt 0:00:16]} Rd5 $2 {[%emt 0:01:11][%mdl 8192]} (33... Rb6 $16) 34. b6 $2 {[%emt 0:01:12]} ({White must play} 34. Bg2 $18 Rc5 (34... d2+ $2 35. Kd1 $18) 35. Bc6+ Ke7 (35... Kc7 $2 36. Rxc5 Nxc5 37. Kd2 $18) 36. Rxc5 Nxc5 37. Kd2) 34... Nd6 $11 {[%emt 0:00:03] The position is equal.} 35. Rc7+ {[%emt 0:01:25]} Ke6 {[%emt 0:00:02]} 36. Bg2 {[%emt 0:07:10]} (36. b7 $5 Rb5 $8 37. Bxd3 Rxb7 38. Bc4+ Kf6 39. Rxb7 Nxb7 40. Ke2 $11) 36... Ne4 {[%emt 0:03:50]} 37. Rc6+ {[%emt 0:02:51]} Kd7 {[%emt 0:02:00]} 38. Bxe4 {[%emt 0:02:52]} fxe4 {[%emt 0:00:04] KR-KR} 39. Rc3 {[%emt 0:00:12]} Rb5 {[%emt 0:02:04]} 40. Rc4 {[%emt 0:01:16]} Rxb6 $2 {[%emt 0:00:04][%mdl 8192]} (40... Rb1+ $11 41. Kf2 Rb2+ (41... Rxb6 42. Rxe4 Rd6 43. Ke1 $11) 42. Ke1 Rxb6 43. Rxe4 Re6 44. Rxe6 Kxe6) 41. Rxe4 $19 {[%emt 0:00:39]} Re6 {[%emt 0:00:39]} 42. Rxe6 {[%emt 0:00:05]} Kxe6 $11 {[%emt 0:00:04] K3P-K3P} 43. Kd2 {[%emt 0:00:03]} Kf5 {[%emt 0:00:03]} 44. Kxd3 {[%emt 0:00:04]} Kg4 {[%emt 0:00:02]} 45. Ke4 {[%emt 0:00:06][%cal Of4f5]} Kxg3 {[%emt 0:00:13]} 46. f5 {[%emt 0:00:08]} gxf5+ {[%emt 0:00:10]} 47. Kxf5 {[%emt 0:00:04] Intending Kg5 and mate.} Kxh4 {[%emt 0:00:06] ( -> ...Kg3)} 48. Kf4 {[%emt 0:00:02][%mdl 32768] Black used his chance.   Weighted Error Value: White=0.19 (very precise) /Black=0.25 (precise) .  Loses game:     	White=1     	Black=1      Missed win:     	White=1     	---        Mistake:       	---       	Black=2      Inaccurate:     	White=1     	Black=1      OK:         	White=14    	Black=18     Best:        	White=6     	Black=2      Strong:       	White=1     	Black=2     . An unexpected result.} 1/2-1/2